{"text_format":"1","workbook":"xlsx","n_sheets":3,"sheets":["Beställd utbildning","Tabeller","Uppföljning Inst"],"not_rendered":{"charts":0,"images":0,"macros":1,"external_links":1,"defined_names":4,"comments":0,"pivot_tables":0},"unopened":[],"bounds":{"document_bytes":16777216,"sheet_cells":100000,"rows_first":2000,"rows_last":500,"rows_between":2000,"halvings":0,"cell_chars":16384,"cell_head_chars":4096},"cells_cut":0,"cells_raw":0,"read":"whole","date_system":"1900"}

{"sheet":"Beställd utbildning","index":0,"n_rows":146,"n_cols":16,"rows_kept":146,"cut":false,"hidden":false,"merged":[[13,4,13,11],[109,15,110,20],[111,15,112,20],[101,5,101,9],[75,15,79,20],[58,15,59,20],[60,15,61,20],[33,15,36,20],[94,15,98,20],[96,5,96,9],[66,5,66,9],[80,5,80,9],[78,5,78,9],[79,5,79,9],[44,6,44,7],[63,5,63,9],[64,5,64,9],[65,5,65,9],[42,6,42,7],[56,5,56,9],[62,5,62,9],[12,4,12,11],[10,3,10,11],[127,15,129,20],[131,15,133,20],[36,6,36,7],[37,6,37,7],[27,6,27,7],[43,6,43,7],[46,6,46,7],[51,5,51,8],[45,6,45,7],[67,5,67,9],[77,5,77,9],[86,5,86,7],[26,6,26,7],[25,6,25,7],[2,3,2,11],[5,4,5,11],[4,3,4,11],[7,4,7,11],[9,4,9,11],[97,5,97,8],[98,5,98,8],[92,4,105,4],[108,4,113,4],[19,15,21,20],[32,4,89,4],[73,5,73,9],[83,5,83,9],[68,5,68,9],[69,5,69,9],[70,5,70,9],[38,6,38,7],[39,6,39,7],[40,6,40,7],[41,6,41,7],[52,5,52,8]]}
[null,null,null,"BESTÄLLD UTBILDNING - KALKYLMALL"]
[]
[null,null,null,"Denna kalkylmodell ska enbart användas vid beräkning av kostnader som debiteras vid beställd. Syftet med modellen är att prissättningen ska leda till att full kostnadstäckning uppnås."]
[]
[null,null,null,"Vid kalkylering är det framför allt viktigt att tänka på följande:"]
[null,null,null,null,"→ Den ersättning som begärs för olika uppdrag ska täcka alla kostnader (direkta och indirekta) som uppkommit pga uppdraget. Förutom lönekostnader inkl sociala kostnader, kan kostnaderna utgöras av t ex  flygresor, hotellkostnader, hyra av utrustning eller föreläsningsrum, litteratur, mm som föranletts av uppdraget. "]
[]
[null,null,null,null,"→ Indirekta kostnader ingår i kalkylen, men för beställd utbildning så reduceras universitetsgemensam INDI med 50%. Beräkningen av de indirekta kostnaderna och reduktionen görs automatiskt i kalkylmallen."]
[]
[null,null,null,null,"→ Timkostnad ska beräknas så att hänsyn tas till debiterbar tid. Hur debiterbar tid beräknas framgår av avsnittet Beräkning av debiterbar timkostnad och tid, längst ned på detta blad."]
[null,null,null,"Anvisning för hur Du fyller i kalkylmallen:"]
[null,null,null,null,"Alla kostnader anges i kronor och exklusive moms!"]
[null,null,null,null,"Vita celler/rader är skrivbara. Ljusblå är beräkning, fler rader kan läggas till vid behov för dessa."]
[null,null,null,null,"Kalkylen ska kontrolleras och attesteras av administrativ chef."]
[]
[]
[]
[]
[]
[null,null,null,null,null,"GRUNDLÄGGANDE UPPGIFTER",null,null,null,null,null,null,null,null,null,"Grundinfo: Fyll i uppgifter om institution, institutionskod, namn, datum i blad \"1. Grundinfo\"."]
[]
[null,null,null,null,null,"Inst kod"]
[null,null,null,null,null,"Uppdragets start, mån/år"]
[null,null,null,null,null,"Uppdragets slut, mån/år"]
[]
[null,null,null,null,null,"Inst projektnummer (UBW)"]
[null,null,null,null,null,"Uppdragsansvarig"]
[null,null,null,null,null,"Kurs/Beskrivning"]
[]
[]
[]
[]
[null,null,null,null,"DIREKTA KOSTNADER        DIREKTA KOSTNADER              DIREKTA KOSTNADER              DIREKTA KOSTNADER              DIREKTA KOSTNADER              DIREKTA KOSTNADER              DIREKTA KOSTNADER              DIREKTA KOSTNADER              DIREKTA KOSTNADER              DIREKTA KOSTNADER","PROJEKTKOSTNADER - INSTITUTION"]
[null,null,null,null,null,null,null,null,null,null,null,null,null,null,null,"A. Hit förs lönekostnader för dem som arbetar i uppdraget t ex lärare, administratörer. Även externa lärare med endast A-skatt. Räkna ut timpris enligt \"Beräkning debiterbar timkostnad\" längst ned i fliken Uppdragsutbildningen för en person i taget.\nObs! Om fler rader läggs till, tänk på att kopiera formel i kolumn K."]
[null,null,null,null,null,"A. Personalkostnader"]
[]
[null,null,null,null,null,"Namn/Roll","Arbetsmoment",null,"Antal timmar","Timkostnad (se beräkning)","Kostnad exkl. LKP"]
[null,null,null,null,null,null,"Planering av kurs",null,null,null,{"$f":"IF(OR(I38=\"\",J38=\"\"),0,(I38*J38))","v":0}]
[null,null,null,null,null,null,"Föreläsning",null,null,null,{"$f":"IF(OR(I39=\"\",J39=\"\"),0,(I39*J39))","v":0}]
[null,null,null,null,null,null,"Distansundervisning",null,null,null,0]
[null,null,null,null,null,null,"Handledning",null,null,null,0]
[null,null,null,null,null,null,"Examination",null,null,null,0]
[null,null,null,null,null,null,"LADOK-rapportör",null,null,null,0]
[null,null,null,null,null,null,"Kostnad för utbildningsnämnd och kursplaner",null,null,null,0]
[null,null,null,null,null,null,"Extern lärare med A-skatt",null,null,null,0]
[null,null,null,null,null,null,null,null,null,null,0]
[null,null,null,null,null,null,null,null,null,null,0]
[]
[]
[null,null,null,null,null,"Summa Personalkostnader exkl. lönekostnadspålägg (LKP)",null,null,{"$f":"SUM(I$38:I47)","v":0},null,{"$f":"SUM(K$38:K47)","v":0}]
[]
[null,null,null,null,null,"Sociala avgifter  (LKP) - 2024",null,null,null,0.54010000000000002]
[null,null,null,null,null,"Semestertillägg",null,null,null,1.8499999999999999E-2]
[null,null,null,null,null,null,null,null,"LKP Total",{"$f":"SUM(J52:J53)","v":0.55859999999999999}]
[]
[]
[null,null,null,null,null,"Summa personalkostnad där lönekostnadspålägg (LKP) ingår",null,null,null,null,{"$f":"K50*(1+J54)","v":0}]
[]
[null,null,null,null,null,"B. Driftkostnader",null,null,null,null,null,null,null,null,null,"B. Här tas hänsyn till de driftkostnader som är direkt hänförbara till uppdraget men inte ingår i personalkostnader."]
[]
[null,null,null,null,null,"B.1 Direkta driftkostnader (Lokal- och KI-interna kostnader kommer under övriga driftkostnader)",null,null,null,null,null,null,null,null,null,"B.1 Här tas alla direkta driftkostnader upp, t.ex. Externa lärare, utrustning, fika/lunch, m.m."]
[]
[null,null,null,null,null,"Driftkostnader",null,null,null,null,"Summa kostnad"]
[null,null,null,null,null,"Extern lärare med f-skatt (exkl. moms)"]
[null,null,null,null,null,"Utrustning"]
[null,null,null,null,null,"Fika/lunch"]
[null,null,null,null,null,"Resor"]
[null,null,null,null,null,"Traktamenta"]
[null,null,null,null,null,"Kurslitteratur"]
[]
[]
[]
[]
[null,null,null,null,null,"Summa direkta driftkostnader",null,null,null,null,{"$f":"SUM(K$64:K71)","v":0}]
[]
[null,null,null,null,null,"B.2 Övriga driftkostnader",null,null,null,null,null,null,null,null,null,"B.2 Här tas alla övriga driftskostnader upp så som lokalkostnader och konstader för instituionens stödverksamhet. För instituionens stödverksamhet som beräknas ett fast belopp som avser den tid och kostnader som belastar instituionens egen stödverksamhet. Ej instituionens INDI-procentsats. "]
[]
[null,null,null,null,null,"Lokalkostnader",null,null,null,null,"Summa kostnad"]
[null,null,null,null,null,"Kontorslokal"]
[null,null,null,null,null,"Utbildningslokal"]
[]
[]
[]
[null,null,null,null,null,"Summa Övriga driftkostnader",null,null,null,null,{"$f":"SUM(K$79:K81)","v":0}]
[]
[]
[null,null,null,null,null,"Summa driftkostnader",null,null,null,null,{"$f":"K74+K84","v":0}]
[]
[]
[null,null,null,null,null,"DELSUMMA DIREKTA PROJEKTKOSTNADER",null,null,null,null,{"$f":"K57+K87","v":0}]
[]
[]
[null,null,null,null,"           INDIREKTA KOSTNADER  ","INDIREKTA KOSTNADER (INDI)"]
[]
[null,null,null,null,null,"C. Beräkning indirekta kostnader",null,null,null,null,null,null,null,null,null,"C. För kostnader i uppdrag som avser beställd utbildning (verksamhetskod 521) görs inte fullt påslag för indirekta kostnader (INDI).Universitetsgemensam INDI reduceras med 50%. Detta beräknas automatiskt i kalkylmallen när institutionskod har angivits i grundläggande uppgifter."]
[]
[null,null,null,null,null,"Indirekta kostnader",null,null,null,null,"Summa kostnad"]
[null,null,null,null,null,"Universitetsgemensamma kostnader",null,null,null,{"$f":"_xlfn.IFNA(VLOOKUP($G$22,Tabeller!$R$4:$V$27,4,0)*0.5,0)","v":0},{"$f":"J98*(K57+K74)","v":0}]
[null,null,null,null,null,"Institutionsgemensamma kostnader",null,null,null,{"$f":"_xlfn.IFNA(VLOOKUP($G$22,Tabeller!$R$4:$V$27,3,0),0)","v":0},{"$f":"J99*(K57+K74)","v":0}]
[]
[]
[null,null,null,null,null,"Summa indirekta kostnader",null,null,null,null,{"$f":"K98+K99","v":0}]
[]
[]
[]
[null,null,null,null,null,"DELSUMMA INDIREKTA PROJEKTKOSTNADER",null,null,null,null,{"$f":"K102","v":0}]
[]
[]
[null,null,null,null,"SUMMA","FULL KOSTNADSSPECIFIKATION"]
[null,null,null,null,null,null,null,null,null,null,null,null,null,null,null,"Summa totala kostnader exkl moms - debiteras statliga högskolor och univetsitet."]
[null,null,null,null,null,"SUMMA KOSTNADER (EXKL MOMS)",null,null,null,{"$f":"SUM($K106:K106)+SUM($K90:K90)","v":0}]
[null,null,null,null,null,null,null,null,null,null,null,null,null,null,null,"Summa totala kostnader inkl moms - debiteras icke-statliga högskolor."]
[null,null,null,null,null,"SUMMA KOSTNADER (INKL MOMS)",null,null,null,{"$f":"J111*1.25","v":0}]
[]
[]
[null,null,null,null,null,"Administrativ chef"]
[]
[]
[null,null,null,null,null,"Signatur"]
[]
[]
[null,null,null,null,null,"Namnförtydligande"]
[]
[]
[]
[]
[]
[null,null,null,null,null,"BERÄKNING AV DEBITERBAR  TIMKOSTNAD OCH TID (Exkl. LKP)",null,null,null,null,null,null,null,null,null,"För att kunna bestämma direkt tid eller s k debiterbar tid, räknas tiden bort för betald ledighet och indirekt tid såsom administration, utbildning och utvecklingsarbete etc."]
[]
[null,null,null,null,null,"Ange månadslön (hela kronor):"]
[]
[null,null,null,null,null,"Arbetstid på årsbas","Dagar","Timmar totalt",null,null,null,null,null,null,null,"I kalkylen bör standardtid vara i stort sett oförändrad år från år, även om det aktuella årets timmar beror på hur helgdagarna infaller."]
[null,null,null,null,null,"52 veckor x 40 tim (heltid)",260,{"$f":"52*40","v":2080}]
[null,null,null,null,null,"- 2 veckor helgdagar avgår",10,{"$f":"2*40","v":80}]
[null,null,null,null,null,"Betald tid",{"$f":"G133-G134","v":250},{"$f":"H133-H134","v":2000}]
[null,null,null,null,null,"- betalda semesterdagar",35,{"$f":"G136*8","v":280}]
[null,null,null,null,null,"- övrig betald frånvaro",5,{"$f":"G137*8","v":40}]
[null,null,null,null,null,"STANDARDTID",{"$f":"G135-G136-G137","v":210},{"$f":"H135-H136-H137","v":1680}]
[null,null,null,null,null,"- egen administration",10,{"$f":"G139*8","v":80}]
[null,null,null,null,null,"- egen utveckling etc",25,{"$f":"G140*8","v":200}]
[null,null,null,null,null,"- resor, sammankomster",25,{"$f":"G141*8","v":200}]
[null,null,null,null,null,"Summa indirekt tid",{"$f":"SUM(G139:G141)","v":60},{"$f":"SUM(H139:H141)","v":480}]
[null,null,null,null,null,"DEBITERBAR TID (DIREKT TID)",{"$f":"G138-G142","v":150},{"$f":"H138-H142","v":1200}]
[]
[]
[null,null,null,null,null,{"$f":"IF(H130=\"\",\"Ange månadslön\",\"Timkostnad exkl. LKP externa uppdrag:\")","v":"Ange månadslön"},null,{"$f":"ROUND(H130/(H143/12),2)","v":0},"kr/tim"]

{"sheet":"Tabeller","index":1,"n_rows":37,"n_cols":22,"rows_kept":37,"cut":false,"hidden":false,"merged":[]}
["Inst",null,null,null,null,"Pris",null,"Riskmarginal",null,"ÅR","Mån",null,"Basersättning",null,null,null,null,"Procentpåslag för indirekta kostnader 2025"]
["C1",null,"Välj kostnadspost från rullista eller skriv in ett värde",null,"Välj kostnadspost från rullista","Välj arb.moment",null,0,null,2025,"01",null,"HP","0-7 delt.","8-19 delt.","20- delt.",null,"Utbildning på grundnivå och avancerad nivå"]
["C2",null,"Kurslitteratur",null,"Utredningsarbete/Förstudie",640,null,{"$f":"H2+0.01","v":0.01},null,{"$f":"J2+1","v":2026},"02",null,"0-",19018.125,49447.125,59590.124999999993,null,"Inst","Namn","Institution","Universitet","Summa"]
["C3",null,"Teknik/Video/Lärobjekt",null,"Offert/Upphandling",640,null,0.02,null,2027,"03",null,"8-",38036.25,59590.124999999993,72268.875,null,"C1","MTC",0.1195,0.38,0.4995]
["C4",null,"Hotell, Rese- och traktamentskostnader",null,"Förhandling kund",640,null,0.03,null,2028,"04",null,"16-",59590.124999999993,79876.125,91287,null,"C2","MBB",0.1094,0.38,0.4894]
["C5",null,"Pärmar/mappar/block",null,"Juridisk bedömning",750,null,0.04,null,2029,"05",null,"45-",68465.25,96358.5,112840.87499999999,null,"C3","FyFa",0.17,0.38,0.55000000000000004]
["C6",null,"Kostnader undervisningslokal",null,"Utökat budgetarbete - flera parter",640,null,0.05,null,2030,"06",null,"60-",82411.875,110305.12499999999,150877.125,null,"C4","Neuro",0.12,0.38,0.5]
["C7",null,"Marknadsföring/annonsering/utskick",null,"Beställning av kurslitteratur/Fika/lunch",430,null,6.0000000000000005E-2,null,2031,"07",null,null,null,null,null,null,"C5","CMB",0.12,0.38,0.5]
["C8",null,null,null,"Bokning Lokaler, Resor, hotell mm.",430,null,7.0000000000000007E-2,null,2032,"08",null,null,null,null,null,null,"C6","IMM",0.28510000000000002,0.38,0.66510000000000002]
["CA",null,null,null,"Produktion av kursmaterial och pärmar",430,null,0.08,null,{"$f":"J9+1","v":2033},"09",null,null,null,null,null,null,"C7","LIME",0.17899999999999999,0.38,0.55899999999999994]
["CB",null,null,null,"Marknadsföring/annonsering/Utskick",430,null,{"$f":"H10+0.01","v":0.09},null,2034,"10",null,null,null,null,null,null,"C8","MEB",0.2235,0.38,0.60350000000000004]
["CC",null,null,null,"Rekrytering av deltagare",530,null,9.9999999999999992E-2,null,2035,"11",null,null,null,null,null,null,"CC","KM",0.12,0.38,0.5]
["CD",null,null,null,"Webbutveckling",640,null,null,null,2036,"12",null,null,null,null,null,null,"D1","KIDS",0.18959999999999999,0.38,0.5696]
["CN",null,null,null,"Webbproduktion",550,null,null,null,2037,null,null,null,null,null,null,null,"H1","NVS",0.13,0.38,0.51]
["D1",null,null,null,null,null,null,null,null,2038,null,null,null,null,null,null,null,"H5","LABMED",0.15390000000000001,0.38,0.53390000000000004]
["H1",null,null,null,null,null,null,null,null,2039,null,null,null,null,null,null,null,"H7","MedH",0.14149999999999999,0.38,0.52149999999999996]
["H5",null,null,null,null,null,null,null,null,2040,null,null,null,null,null,null,null,"H9","CLINTEC",0.126,0.38,0.50600000000000001]
["H7",null,null,null,null,null,null,null,null,2041,null,null,null,null,null,null,null,"K1","MMK",0.115,0.38,0.495]
["H9",null,null,null,null,null,null,null,null,2042,null,null,null,null,null,null,null,"K2","MedS",0.16500000000000001,0.38,0.54500000000000004]
["K1",null,null,null,null,null,null,null,null,2043,null,null,null,null,null,null,null,"K6","KBH",0.14000000000000001,0.38,0.52]
["K2",null,null,null,null,null,null,null,null,null,null,null,null,null,null,null,null,"K7","OnkPat",6.1400000000000003E-2,0.38,0.44140000000000001]
["K6",null,null,null,null,null,null,null,null,null,null,null,null,null,null,null,null,"K8","CNS",7.0000000000000007E-2,0.38,0.45]
["K7",null,null,null,null,null,null,null,null,null,null,null,null,null,null,null,null,"K9","GPH",0.13250000000000001,0.38,0.51249999999999996]
["K8",null,null,null,null,null,null,null,null,null,null,null,null,null,null,null,null,"OF","DENTMED",0.14099999999999999,0.38,0.52100000000000002]
["K9",null,null,null,null,null,null,null,null,null,null,null,null,null,null,null,null,"OV","Universitetstandvården",0.21099999999999999,8.2500000000000004E-2,0.29349999999999998]
["LC",null,null,null,null,null,null,null,null,null,null,null,null,null,null,null,null,"S1","SÖS",0.1643,0.38,0.54430000000000001]
["OF",null,null,null,null,null,null,null,null,null,null,null,null,null,null,null,null,"TL","Undervisning och lärande",0.12,0.38,0.5]
["OV"]
["S1"]
["TL"]
["UE"]
["UF"]
["UG"]
["UI"]
["UK"]
["UL"]
["US"]

{"sheet":"Uppföljning Inst","index":2,"n_rows":18,"n_cols":15,"rows_kept":18,"cut":false,"hidden":false,"merged":[[2,2,7,15]]}
[null,null,"INSTITUTION - STÖD FÖR BUDGET TILL UBW"]
[]
[null,null,"Inledning\n\nDenna flik summerar kostnader och intäkter som fyllts in i kalkylfliken och återvisar dem i en budget modell som kan enkelt föras in i UBWs Saldo tabell för uppföljningsändamål. Posterna hämtas till olika konton beroende på vad som fyllts i under respektive rubrik i kalkylen. \nOBS! Kopiera endast gråa fält och klistra in direkt i UBW (Ctrl + C & Ctrl + V). Se gärna UBW handbok på medarbetarportalen för ytterligare instruktioner om hur funktionen nyttjas."]
[]
[]
[]
[]
[]
[]
[]
[null,null,null,"TOTAL BUDGET"]
[]
[null,null,null,"RR2","Beskrivning","Konto","Inst","Proj","Fin","Anl","Mpt","Verks","Text","Per","Budget (BB)"]
[null,null,null,12,"Intäkter av uppdrag",33,{"$f":"IF('Beställd utbildning'!$G$22=\"\",\"\",LEFT('Beställd utbildning'!$G$22,2))","v":""},{"$f":"IF('Beställd utbildning'!$G$26=\"\",\"FYLL I PROJEKTNUMMER\",'Beställd utbildning'!$G$26)","v":"FYLL I PROJEKTNUMMER"},null,null,null,null,{"$f":"\"Budget totalt \"&'Beställd utbildning'!$G$28","v":"Budget totalt "},{"$f":"'Beställd utbildning'!$H$23&'Beställd utbildning'!$G$23","v":""},{"$f":"-'Beställd utbildning'!J111","v":0}]
[null,null,null,21,"Personalkostnader",40,{"$f":"IF('Beställd utbildning'!$G$22=\"\",\"\",LEFT('Beställd utbildning'!$G$22,2))","v":""},{"$f":"IF('Beställd utbildning'!$G$26=\"\",\"FYLL I PROJEKTNUMMER\",'Beställd utbildning'!$G$26)","v":"FYLL I PROJEKTNUMMER"},null,null,null,null,{"$f":"\"Budget totalt \"&'Beställd utbildning'!$G$28","v":"Budget totalt "},{"$f":"'Beställd utbildning'!$H$23&'Beställd utbildning'!$G$23","v":""},{"$f":"'Beställd utbildning'!K57","v":0}]
[null,null,null,221,"Gemensammakostnader",499,{"$f":"IF('Beställd utbildning'!$G$22=\"\",\"\",LEFT('Beställd utbildning'!$G$22,2))","v":""},{"$f":"IF('Beställd utbildning'!$G$26=\"\",\"FYLL I PROJEKTNUMMER\",'Beställd utbildning'!$G$26)","v":"FYLL I PROJEKTNUMMER"},null,null,null,null,{"$f":"\"Budget totalt \"&'Beställd utbildning'!$G$28","v":"Budget totalt "},{"$f":"'Beställd utbildning'!$H$23&'Beställd utbildning'!$G$23","v":""},{"$f":"'Beställd utbildning'!K106","v":0}]
[null,null,null,22,"Lokalkostnader",50,{"$f":"IF('Beställd utbildning'!$G$22=\"\",\"\",LEFT('Beställd utbildning'!$G$22,2))","v":""},{"$f":"IF('Beställd utbildning'!$G$26=\"\",\"FYLL I PROJEKTNUMMER\",'Beställd utbildning'!$G$26)","v":"FYLL I PROJEKTNUMMER"},null,null,null,null,{"$f":"\"Budget totalt \"&'Beställd utbildning'!$G$28","v":"Budget totalt "},{"$f":"'Beställd utbildning'!$H$23&'Beställd utbildning'!$G$23","v":""},{"$f":"'Beställd utbildning'!K84","v":0}]
[null,null,null,23,"Övriga driftskostnader",52,{"$f":"IF('Beställd utbildning'!$G$22=\"\",\"\",LEFT('Beställd utbildning'!$G$22,2))","v":""},{"$f":"IF('Beställd utbildning'!$G$26=\"\",\"FYLL I PROJEKTNUMMER\",'Beställd utbildning'!$G$26)","v":"FYLL I PROJEKTNUMMER"},null,null,null,null,{"$f":"\"Budget totalt \"&'Beställd utbildning'!$G$28","v":"Budget totalt "},{"$f":"'Beställd utbildning'!$H$23&'Beställd utbildning'!$G$23","v":""},{"$f":"'Beställd utbildning'!K74","v":0}]